fUSD/lending_fUSD_20250818
["ID","MTS","AMOUNT","RATE_DAILY","PERIOD"]
[380050255,1755504654031,-182.132779,0.00013699,2]
[380050256,1755504654041,-1500.0,0.00013699,2]
[380050257,1755504654051,-357.878528,0.00013699,2]
[380050258,1755504654061,-357.878528,0.00013699,2]
[380050259,1755504654071,-357.878528,0.00013699,2]
[380050260,1755504654081,-357.878528,0.00013699,2]
[380050261,1755504654091,-500.0,0.00013699,2]
[380050262,1755504654100,-163.67182899,0.00013699,2]
[380050263,1755504654110,-201.44375891,0.00013699,2]
[380050264,1755504654120,-500.0,0.00013699,2]
[380050265,1755504654130,-500.0,0.00013699,2]
[380050266,1755504654140,-163.00517996,0.00013699,2]
[380050267,1755504654149,-500.0,0.00013699,2]
[380050268,1755504654160,-420.12281961,0.00013699,2]
[380050269,1755504654177,-500.0,0.00013699,2]
[380050270,1755504654189,-500.0,0.00013699,2]
[380050271,1755504654198,-159.99650615,0.00013699,2]
[380050272,1755504654209,-500.0,0.00013699,2]
[380050273,1755504654221,-500.0,0.00013699,2]
[380050274,1755504654231,-500.0,0.00013699,2]
[380050275,1755504654242,-578.29577991,0.00013699,2]
[380050276,1755504654251,-500.0,0.00013699,2]
[380050277,1755504654261,-500.0,0.00013699,2]
[380050278,1755504654270,-500.0,0.00013699,2]
[380050279,1755504654282,-500.0,0.00013699,2]
[380050280,1755504654291,-500.0,0.00013699,2]
[380050281,1755504654301,-166.56744725,0.00013699,2]
[380050282,1755504654310,-159.99316195,0.00013699,2]
[380050283,1755504654319,-159.9604808,0.00013699,2]
[380050284,1755504654329,-160.00445115,0.00013699,2]
[380050285,1755504654338,-159.99631022,0.00013699,2]
[380050286,1755504654347,-160.00287959,0.00013699,2]
[380050287,1755504654356,-160.43261759,0.00013699,2]
[380050288,1755504654366,-159.98306112,0.00013699,2]
[380050289,1755504654375,-160.00545219,0.00013699,2]
[380050290,1755504654384,-160.00910248,0.00013699,2]
[380050291,1755504654393,-500.0,0.00013699,2]
[380050292,1755504654402,-166.31004873,0.00013699,2]
[380050293,1755504654411,-500.60292924,0.00013699,2]
[380050294,1755504654420,-160.00300427,0.00013699,2]
[380050295,1755504654429,-160.01580022,0.00013699,2]
[380050296,1755504654439,-160.00282716,0.00013699,2]
[380050297,1755504654448,-159.98328357,0.00013699,2]
[380050298,1755504654459,-542.88816318,0.00013699,2]
[380050299,1755504654469,-500.0,0.00013699,2]
[380050300,1755504654478,-159.99980911,0.00013699,2]
[380050301,1755504654487,-500.0,0.00013699,2]
[380050302,1755504654497,-160.00372491,0.00013699,2]
[380050303,1755504654506,-159.98460032,0.00013699,2]
[380050304,1755504654516,-160.01284061,0.00013699,2]
[380050305,1755504654525,-500.0,0.00013699,2]
[380050306,1755504654535,-500.0,0.00013699,2]
[380050307,1755504654546,-160.00559658,0.00013699,2]
[380050308,1755504654556,-500.0,0.00013699,2]
[380050309,1755504654568,-160.00077453,0.00013699,2]
[380050310,1755504654578,-500.0,0.00013699,2]
[380050311,1755504654587,-500.0,0.00013699,2]
[380050312,1755504654598,-159.99516239,0.00013699,2]
[380050313,1755504654608,-500.0,0.00013699,2]
[380050314,1755504654618,-502.53260797,0.00013699,2]
[380050315,1755504654629,-160.00458507,0.00013699,2]
[380050316,1755504654639,-160.00619911,0.00013699,2]
[380050317,1755504654648,-160.01219398,0.00013699,2]
[380050318,1755504654658,-500.0,0.00013699,2]
[380050319,1755504654668,-500.0,0.00013699,2]
[380050320,1755504654678,-155.52219057,0.00013699,2]
[380050321,1755504654687,-500.0,0.00013699,2]
[380050322,1755504654697,-163.11394152,0.00013699,2]
[380050323,1755504654708,-500.0,0.00013699,2]
[380050324,1755504654718,-500.0,0.00013699,2]
[380050325,1755504654728,-500.0,0.00013699,2]
[380050326,1755504654738,-503.31093264,0.00013699,2]
[380050327,1755504654749,-504.34133278,0.00013699,2]
[380050328,1755504654760,-215.31272103,0.00013699,2]
[380050329,1755504654769,-518.67494457,0.00013699,2]
[380050330,1755504654779,-500.0,0.00013699,2]
[380050331,1755504654789,-457.94419724,0.00013699,2]
[380050332,1755504654798,-336.89600268,0.00013699,2]
[380050333,1755504654807,-161.88607315,0.00013699,2]
[380050334,1755504654816,-500.0,0.00013699,2]
[380050335,1755504654825,-500.0,0.00013699,2]
[380050336,1755504654835,-500.0,0.00013699,2]
[380050337,1755504654844,-160.01459114,0.00013699,2]
[380050338,1755504654853,-160.00646194,0.00013699,2]
[380050339,1755504654863,-159.99591951,0.00013699,2]
[380050340,1755504654872,-159.9932013,0.00013699,2]
[380050341,1755504654881,-565.69390898,0.00013699,2]
[380050342,1755504654890,-159.99952028,0.00013699,2]
[380050343,1755504654899,-159.99826631,0.00013699,2]
[380050344,1755504654908,-500.0,0.00013699,2]
[380050345,1755504654917,-500.0,0.00013699,2]
[380050346,1755504654927,-500.0,0.00013699,2]
[380050347,1755504654936,-275.98209396,0.00013699,2]
[380050348,1755504654946,-321.43723328,0.00013699,2]
[380050349,1755504654956,-164.91232491,0.00013699,2]
[380050350,1755504654965,-500.0,0.00013699,2]
[380050351,1755504654975,-500.0,0.00013699,2]
[380050352,1755504654984,-500.0,0.00013699,2]
[380050353,1755504654994,-511.26396842,0.00013699,2]
[380050354,1755504655003,-500.0,0.00013699,2]
[380050355,1755504655018,-500.0,0.00013699,2]
[380050356,1755504655028,-500.0,0.00013699,2]
[380050357,1755504655037,-500.0,0.00013699,2]
[380050358,1755504655047,-271.0,0.00013699,2]
[380050359,1755504655056,-666.0,0.00013699,2]
[380050360,1755504655066,-666.0,0.00013699,2]
[380050361,1755504655075,-743.56519049,0.00013699,2]
[380050362,1755504655085,-666.0,0.00013699,2]
[380050363,1755504655095,-666.0,0.00013699,2]
[380050364,1755504655106,-2000.0,0.00013699,2]
[380050365,1755504655116,-299.362976,0.00013699,2]
[380050366,1755504655126,-299.362976,0.00013699,2]
[380050367,1755504655137,-151.0,0.00013699,2]
[380050368,1755504655147,-151.0,0.00013699,2]
[380050369,1755504655157,-151.0,0.00013699,2]
[380050370,1755504655171,-159.77,0.000137,2]
[380050371,1755504655181,-250000.0,0.000137,2]
[380050372,1755504655191,-250.47279,0.000137,2]
[380050373,1755504655200,-250.47279,0.000137,2]
[380050374,1755504655211,-152.307233,0.000137,2]
[380050375,1755504655220,-281.653092,0.000137,2]
[380050376,1755504655230,-281.653092,0.000137,2]
[380050377,1755504655246,-232.305114,0.000137,2]
[380050378,1755504655256,-232.305114,0.000137,2]
[380050379,1755504655266,-299.447255,0.000137,2]
[380050380,1755504655276,-151.0,0.000137,2]
[380050381,1755504655288,-151.0,0.000137,2]
[380050382,1755504655301,-159.404951,0.000137,2]
[380050383,1755504655311,-199.957244,0.000137,2]
[380050384,1755504655321,-159.404951,0.000137,2]
[380050385,1755504655331,-199.957244,0.000137,2]
[380050386,1755504655341,-180.506024,0.000137,2]
[380050387,1755504655351,-180.506024,0.000137,2]
[380050388,1755504655361,-845.149097,0.000137,2]
[380050389,1755504655371,-1213.272212,0.000137,2]
[380050390,1755504655380,-257.599784,0.000137,2]
[380050391,1755504655391,-2397.698286,0.000137,2]
[380050392,1755504655401,-845.149097,0.000137,2]
[380050393,1755504655411,-1213.272212,0.000137,2]
[380050394,1755504655422,-257.599784,0.000137,2]
[380050395,1755504655431,-236.714752,0.000137,2]
[380050396,1755504655441,-2397.698286,0.000137,2]
[380050397,1755504655451,-192.390189,0.000137,2]
[380050398,1755504655462,-721.881884,0.000137,2]
[380050399,1755504655472,-192.390189,0.000137,2]
[380050400,1755504655481,-721.881884,0.000137,2]
[380050401,1755504655491,-151.0,0.000137,2]
[380050402,1755504655500,-291.576258,0.000137,2]
[380050403,1755504655510,-291.576258,0.000137,2]
[380050404,1755504655519,-321.247602,0.000137,2]
[380050405,1755504655528,-321.247602,0.000137,2]
[380050406,1755504655537,-151.0,0.000137,2]
[380050407,1755504655546,-151.0,0.000137,2]
[380050408,1755504655556,-151.0,0.000137,2]
[380050409,1755504655566,-151.0,0.000137,2]
[380050410,1755504655575,-152.853835,0.000137,2]
[380050411,1755504655585,-152.853835,0.000137,2]
[380050412,1755504655595,-151.0,0.000137,2]
[380050413,1755504655605,-151.0,0.000137,2]
[380050414,1755504655615,-151.0,0.000137,2]
[380050415,1755504655624,-151.0,0.000137,2]
[380050416,1755504655634,-1360.054722,0.000137,2]
[380050417,1755504655643,-1360.054722,0.000137,2]
[380050418,1755504655652,-151.0,0.000137,2]
[380050419,1755504655662,-269.422996,0.000137,2]
[380050420,1755504655672,-151.0,0.000137,2]
[380050421,1755504655681,-189.766744,0.000137,2]
[380050422,1755504655691,-189.766744,0.000137,2]
[380050423,1755504655701,-193.133747,0.000137,2]
[380050424,1755504655711,-193.133747,0.000137,2]
[380050425,1755504655721,-151.0,0.000137,2]
[380050426,1755504655731,-151.0,0.000137,2]
[380050427,1755504655740,-839.072728,0.000137,2]
[380050428,1755504655750,-151.0,0.000137,2]
[380050429,1755504655761,-839.072728,0.000137,2]
[380050430,1755504655770,-952.911512,0.000137,2]
[380050431,1755504655780,-952.911512,0.000137,2]
[380050432,1755504655789,-242.644988,0.000137,2]
[380050433,1755504655799,-151.0,0.000137,2]
[380050434,1755504655808,-242.644988,0.000137,2]
[380050435,1755504655818,-152.249389,0.000137,2]
[380050436,1755504655827,-190.015805,0.000137,2]
[380050437,1755504655837,-152.249389,0.000137,2]
[380050438,1755504655849,-190.015805,0.000137,2]
[380050439,1755504655859,-1000.0,0.000137,2]
[380050440,1755504655870,-151.0,0.000137,2]
[380050441,1755504655880,-241.156177,0.000137,2]
[380050442,1755504655889,-151.0,0.000137,2]
[380050443,1755504655898,-241.156177,0.000137,2]
[380050444,1755504655907,-151.0,0.000137,2]
[380050445,1755504655916,-151.0,0.000137,2]
[380050446,1755504655925,-151.0,0.000137,2]
[380050447,1755504655934,-151.0,0.000137,2]
[380050448,1755504655943,-3896.44436924,0.000137,2]
[380050449,1755504655952,-3896.44436924,0.000137,2]
[380050450,1755504655962,-3896.44436924,0.000137,2]
[380050451,1755504655972,-3896.44436924,0.000137,2]
[380050452,1755504656157,-3896.44436924,0.000137,2]
[380050453,1755504656171,-3896.44436924,0.000137,2]
[380050454,1755504656181,-3896.44436924,0.000137,2]
[380050455,1755504656191,-3896.44436924,0.000137,2]
[380050456,1755504656201,-3896.44436924,0.000137,2]
[380050457,1755504656213,-3896.44436924,0.000137,2]
[380050458,1755504656223,-3896.44436924,0.000137,2]
[380050459,1755504656233,-3896.44436924,0.000137,2]
[380050460,1755504656243,-3896.44436924,0.000137,2]
[380050461,1755504656254,-3896.44436924,0.000137,2]
[380050462,1755504656265,-3896.44436924,0.000137,2]
[380050463,1755504656275,-3896.44436924,0.000137,2]
[380050464,1755504656285,-3896.44436924,0.000137,2]
[380050465,1755504656295,-3896.44436924,0.000137,2]
[380050466,1755504656304,-3896.44436924,0.000137,2]
[380050467,1755504656314,-3896.44,0.000137,2]
[380050468,1755504656323,-9091.70352822,0.000137,2]
[380050469,1755504656333,-9091.70352822,0.000137,2]
[380050470,1755504656343,-9091.70352822,0.000137,2]
[380050471,1755504656352,-9091.70352822,0.000137,2]
[380050472,1755504656362,-9091.70352822,0.000137,2]
[380050473,1755504656372,-9091.70352822,0.000137,2]
[380050474,1755504656381,-9091.70352822,0.000137,2]
[380050475,1755504656391,-9091.70352822,0.000137,2]
[380050476,1755504656400,-9091.70352822,0.000137,2]
[380050477,1755504656409,-9091.70352822,0.000137,2]
[380050478,1755504656419,-9091.70352822,0.000137,2]
[380050479,1755504656429,-9091.70352822,0.000137,2]
[380050480,1755504656440,-9091.70352822,0.000137,2]
[380050481,1755504656451,-9091.70352822,0.000137,2]
[380050482,1755504656461,-9091.70352822,0.000137,2]
[380050483,1755504656471,-9091.70352822,0.000137,2]
[380050484,1755504656481,-9091.70352822,0.000137,2]
[380050485,1755504656490,-9091.70352822,0.000137,2]
[380050486,1755504656500,-9091.70352822,0.000137,2]
[380050487,1755504656509,-9091.7,0.000137,2]
[380050488,1755504656518,-2056.81483598,0.000137,2]
[380050489,1755504656527,-2056.81483598,0.000137,2]
[380050490,1755504656537,-2056.81483598,0.000137,2]
[380050491,1755504656546,-2056.81483598,0.000137,2]
[380050492,1755504656557,-2056.81483598,0.000137,2]
[380050493,1755504656567,-2056.81483598,0.000137,2]
[380050494,1755504656577,-2056.81483598,0.000137,2]
[380050495,1755504656587,-2056.81483598,0.000137,2]
[380050496,1755504656596,-2056.81483598,0.000137,2]
[380050497,1755504656605,-2056.81483598,0.000137,2]
[380050498,1755504656614,-2056.81483598,0.000137,2]
[380050499,1755504656624,-2056.81483598,0.000137,2]
[380050500,1755504656633,-2056.81483598,0.000137,2]
[380050501,1755504656642,-2056.81483598,0.000137,2]
[380050502,1755504656651,-2056.81483598,0.000137,2]
[380050503,1755504656661,-2056.81483598,0.000137,2]
[380050504,1755504656671,-2056.81483598,0.000137,2]
[380050505,1755504656680,-2056.81483598,0.000137,2]
[380050506,1755504656690,-2056.81483598,0.000137,2]
[380050507,1755504656699,-2056.81,0.000137,2]
[380050508,1755504656709,-4799.2346173,0.000137,2]
[380050509,1755504656718,-4799.2346173,0.000137,2]
[380050510,1755504656727,-4799.2346173,0.000137,2]
[380050511,1755504656737,-4799.2346173,0.000137,2]
[380050512,1755504656747,-4799.2346173,0.000137,2]
[380050513,1755504656756,-4799.2346173,0.000137,2]
[380050514,1755504656766,-4799.2346173,0.000137,2]
[380050515,1755504656775,-4799.2346173,0.000137,2]
[380050516,1755504656784,-4799.2346173,0.000137,2]
[380050517,1755504656794,-4799.2346173,0.000137,2]
[380050518,1755504656803,-4799.2346173,0.000137,2]
[380050519,1755504656813,-4799.2346173,0.000137,2]
[380050520,1755504656822,-4799.2346173,0.000137,2]
[380050521,1755504656832,-4799.2346173,0.000137,2]
[380050522,1755504656843,-4799.2346173,0.000137,2]
[380050523,1755504656853,-4799.2346173,0.000137,2]
[380050524,1755504656863,-4799.2346173,0.000137,2]
[380050525,1755504656874,-3726.23385533,0.000137,2]
[380050526,1755504657971,-1032.91959802,0.000137,2]
[380050527,1755504657983,-40.08116395,0.000137,2]
[380050528,1755504657993,-3619.44344711,0.000137,2]
[380050529,1755504658004,-1179.79117019,0.000137,2]
[380050530,1755504658013,-1958.76020481,0.000137,2]
[380050531,1755504658025,-1246.8,0.000137,2]
[380050535,1755504795199,-150.0,0.00012099,4]
[380050536,1755504845003,-203.9945157,9.999e-05,2]
[380050537,1755504845028,-4796.0054843,0.0001,2]
[380050547,1755505474860,170.0,0.00011482,7]
[380050564,1755505831605,-481.7134784,9.954e-05,2]
[380050565,1755505831615,-389.20844914,0.0001,2]
[380050566,1755505831625,-255.0,0.0001011,2]
[380050567,1755505831634,-255.0,0.00010115,2]
[380050568,1755505831643,-255.0,0.0001012,2]
[380050569,1755505831652,-358.99811627,0.00010125,2]
[380050570,1755505831662,-154.05,0.00010641,2]
[380050571,1755505831671,-1200.0,0.00010899,2]
[380050572,1755505831680,-216.2197,0.000109,2]
[380050573,1755505831689,-285.4048072,0.000109,2]
[380050574,1755505831699,-158.9853618,0.000109,2]
[380050575,1755505831708,-647.72233494,0.000109,2]
[380050576,1755505831717,-172.25880768,0.000109,2]
[380050577,1755505831726,-1846.86029626,0.000109,2]
[380050578,1755505831735,-172.17033331,0.000109,2]
[380050579,1755505831744,-300.0,0.00010957,2]
[380050580,1755505831753,-900.0,0.00010959,2]
[380050581,1755505831763,-900.0,0.00010959,2]
[380050582,1755505831772,-900.0,0.00010959,2]
[380050583,1755505831781,-900.0,0.00010959,2]
[380050584,1755505831791,-900.0,0.00010959,2]
[380050585,1755505831800,-900.0,0.00010959,2]
[380050586,1755505831809,-900.0,0.00010959,2]
[380050587,1755505831818,-900.0,0.00010959,2]
[380050588,1755505831828,-500.0,0.00010973,2]
[380050589,1755505831837,-500.0,0.00010973,2]
[380050590,1755505831847,-500.0,0.00010973,2]
[380050591,1755505831856,-500.0,0.00010973,2]
[380050592,1755505831865,-500.0,0.00010973,2]
[380050593,1755505831874,-500.0,0.00010973,2]
[380050594,1755505831883,-500.0,0.00010973,2]
[380050595,1755505831892,-500.0,0.00010973,2]
[380050596,1755505831901,-500.0,0.00010973,2]
[380050597,1755505831910,-500.0,0.00010973,2]
[380050598,1755505831921,-500.0,0.00010973,2]
[380050599,1755505831939,-500.0,0.00010973,2]
[380050601,1755505831949,-500.0,0.00010973,2]
[380050603,1755505831958,-150.0,0.00010999,2]
[380050605,1755505831970,-444.408315,0.00010999,2]
[380050612,1755505832034,-351.17144605,0.00010999,2]
[380050614,1755505832046,-805.78640123,0.00010999,2]
[380050617,1755505832068,-1586.915445,0.00010999,2]
[380050620,1755505832079,-282.26393641,0.00010999,2]
[380050624,1755505832110,-529.45445631,0.00010999,2]
[380050626,1755505832122,-1085.54933168,0.00010999,2]
[380050628,1755505832135,-914.45066832,0.00010999,2]
[380050630,1755505832144,-62.37035556,0.00011,2]
[380050636,1755505832179,-8349.95295023,0.00011,2]
[380050638,1755505832190,-51328.85101329,0.00011,2]
[380050640,1755505832201,-576.90123501,0.00011,2]
[380050642,1755505832216,-2212.30913856,0.00011,2]
[380050648,1755505832265,-43412.9063071,0.00011,2]
[380050650,1755505832276,-1846.7336496,0.00011,2]
[380050760,1755505839646,-218.35123035,0.000109,2]
[380050761,1755505839678,-344.13326965,0.00011,2]
[380050762,1755505839766,-6945109.46038338,0.00011,2]
[380050763,1755505839776,-109800.61522997,0.00011,2]
[380050764,1755505839785,-11141571.82665895,0.00011,2]
[380050777,1755505841128,-2276.93235252,0.00011,2]
[380050778,1755505841139,-723.06764748,0.00011,2]
[380050779,1755505841179,-1610.9619606,0.00011,2]
[380050780,1755505841199,-265.96,0.00011,2]
[380050781,1755505841210,-396.0,0.00011,2]
[380050782,1755505841222,-2345.01898471,0.00011,2]
[380050783,1755505841249,-271.42282622,0.00011,2]
[380050784,1755505841325,-2145.05,0.00011,2]
[380050794,1755505846876,-7493.40828174,0.00011,2]
[380050795,1755505846887,-3134.999995,0.00011,2]
[380050796,1755505846898,-9386.7,0.00011,2]
[380050797,1755505846909,-3143.88672,0.00011,2]
[380050824,1755506199592,1762.86,0.00024,120]
[380050825,1755506522475,130.0,0.00010133,7]
[380050826,1755506522500,40.0,0.00010133,7]
[380050827,1755506683045,807.15,0.00024,120]
[380050829,1755506789074,150.0,0.00024,120]
[380050831,1755506924303,-150.0,9.7e-05,2]
[380050848,1755507032831,-265.92,9.816e-05,2]
[380050849,1755507032840,-300.0,9.834e-05,2]
[380050850,1755507032850,-291.25818947,9.851e-05,2]
[380050851,1755507032859,-300.0,9.852e-05,2]
[380050852,1755507032871,-150.0,9.852e-05,2]
[380050853,1755507032880,-300.0,9.862e-05,2]
[380050854,1755507032889,-150.0,9.888e-05,2]
[380050855,1755507032898,-207.62823898,9.905e-05,2]
[380050856,1755507032907,-419.62,9.906e-05,2]
[380050857,1755507032917,-419.62,9.911e-05,2]
[380050858,1755507032926,-419.62,9.916e-05,2]
[380050859,1755507032935,-419.62,9.921e-05,2]
[380050860,1755507032945,-419.62,9.927e-05,2]
[380050861,1755507032955,-232.96903802,9.932e-05,2]
[380050862,1755507033001,-186.65096198,9.932e-05,2]
[380050863,1755507033011,-1000.0,9.935e-05,2]
[380050864,1755507033020,-242.54696071,9.937e-05,2]
[380050865,1755507033032,-177.07303929,9.937e-05,2]
[380050866,1755507033043,-419.62,9.942e-05,2]
[380050867,1755507033052,-419.62,9.947e-05,2]
[380050868,1755507033063,-419.62,9.953e-05,2]
[380050869,1755507033072,-419.62,9.958e-05,2]
[380050870,1755507033082,-419.62,9.963e-05,2]
[380050871,1755507033092,-1200.0,9.967e-05,2]
[380050872,1755507033101,-419.62,9.968e-05,2]
[380050873,1755507033111,-419.62,9.973e-05,2]
[380050874,1755507033121,-419.62,9.979e-05,2]
[380050875,1755507033131,-300.0,9.983e-05,2]
[380050876,1755507033533,-300.0,9.983e-05,2]
[380050877,1755507033548,-300.0,9.983e-05,2]
[380050878,1755507033558,-419.62,9.984e-05,2]
[380050879,1755507033568,-908.09516128,9.984e-05,2]
[380050880,1755507033578,-419.62,9.989e-05,2]
[380050881,1755507033587,-419.62,9.994e-05,2]
[380050882,1755507033597,-419.62,9.999e-05,2]
[380050883,1755507033606,-419.62,0.00010005,2]
[380050884,1755507033617,-150.0,0.00010005,2]
[380050885,1755507033626,-11892.87,0.00010005,2]
[380050886,1755507033636,-1823.81,0.00010058,2]
[380050887,1755507033646,-150.0,0.00010144,2]
[380050888,1755507033656,-150.0,0.0001034,2]
[380050889,1755507033666,-300.0,0.00010401,2]
[380050890,1755507033676,-1496.9612064,0.00010501,2]
[380050891,1755507033685,-573.78,0.00010501,2]
[380050892,1755507033694,-300.0,0.00010798,2]
[380050893,1755507033704,-150.0,0.00010798,2]
[380050894,1755507033714,-250.0,0.00010798,2]
[380050895,1755507033723,-300.0,0.00010798,2]
[380050896,1755507033732,-150.0,0.00010876,2]
[380050897,1755507033742,-150.0,0.0001088,2]
[380050898,1755507033752,-6752.22098,0.0001089,2]
[380050899,1755507033762,-1000.0,0.000109,2]
[380050900,1755507033771,-4009.7215,0.000109,2]
[380050901,1755507033780,-2441.0536,0.000109,2]
[380050902,1755507033790,-1503.8904,0.000109,2]
[380050903,1755507033799,-158.40556642,0.000109,2]
[380050904,1755507033808,-2244.58,0.000109,2]
[380050905,1755507033817,-647.72233494,0.000109,2]
[380050906,1755507033827,-304.9915446,0.000109,2]
[380050907,1755507033836,-1788.74516549,0.000109,2]
[380050908,1755507033845,-900.0,0.00010959,2]
[380050909,1755507033855,-900.0,0.00010959,2]
[380050910,1755507033866,-900.0,0.00010959,2]
[380050911,1755507033880,-900.0,0.00010959,2]
[380050912,1755507033890,-900.0,0.00010959,2]
[380050913,1755507033899,-900.0,0.00010959,2]
[380050914,1755507033910,-900.0,0.00010959,2]
[380050915,1755507033920,-900.0,0.00010959,2]
[380050916,1755507033929,-5932.828,0.00010959,2]
[380050917,1755507033938,-446.246,0.00010959,2]
[380050918,1755507033948,-1680.0,0.00010964,2]
[380050919,1755507033958,-500.0,0.00010973,2]
[380050920,1755507033967,-500.0,0.00010973,2]
[380050921,1755507033976,-500.0,0.00010973,2]
[380050922,1755507033985,-500.0,0.00010973,2]
[380050923,1755507033994,-500.0,0.00010973,2]
[380050924,1755507034004,-500.0,0.00010973,2]
[380050925,1755507034013,-341.93999063,0.00010973,2]
[380050926,1755507034023,-500.0,0.00010973,2]
[380050927,1755507034032,-200.7024043,0.00010973,2]
[380050928,1755507034042,-500.0,0.00010973,2]
[380050929,1755507034052,-500.0,0.00010973,2]
[380050930,1755507034061,-500.0,0.00010973,2]
[380050931,1755507034071,-500.0,0.00010973,2]
[380050932,1755507034080,-500.0,0.00010973,2]
[380050933,1755507034089,-500.0,0.00010973,2]
[380050934,1755507034099,-500.0,0.00010973,2]
[380050935,1755507034108,-315.0,0.00010981,2]
[380050936,1755507034118,-420.0,0.00010981,2]
[380050937,1755507034128,-500.0,0.00010993,2]
[380050938,1755507034138,-151.0,0.00010993,2]
[380050939,1755507034148,-2000.0,0.00010999,2]
[380050940,1755507034157,-2000.0,0.00010999,2]
[380050941,1755507034167,-2000.0,0.00010999,2]
[380050942,1755507034177,-4000.0,0.00010999,2]
[380050943,1755507034187,-173665.89247459,0.00011,2]
[380050944,1755507034237,-1905.0,0.00011,2]
[380050945,1755507034248,-6379.82864824,0.00011,2]
[380050946,1755507034260,-6721.98428642,0.00011,2]
[380050947,1755507034289,-254.49104337,0.00011,2]
[380050948,1755507034330,-2128.54651901,0.00011,2]
[380050949,1755507034342,-8831.36820332,0.00011,2]
[380050950,1755507034398,-741.09005227,0.00011,2]
[380050951,1755507034408,-652.85350623,0.00011,2]
[380050994,1755507038384,-6244000.47228475,0.00011,2]
[380050996,1755507038394,-109800.61522997,0.00011,2]
[380050998,1755507038403,-6842998.15291062,0.00011,2]
[380051000,1755507038412,-21105.69,0.00011,2]
[380051002,1755507038422,-4978576.97184696,0.00011,2]
[380051019,1755507039879,-329.0207687,0.00011,2]
[380051020,1755507039890,-2323.91063749,0.00011,2]
[380051021,1755507040243,-1163.7,0.00011,2]
[380051023,1755507040255,-80051.34114287,0.00011,2]
[380051024,1755507040284,-18142.74784534,0.00011,2]
[380051025,1755507040496,-3813.67469012,0.00011,2]
[380051026,1755507040510,-15604.51076142,0.00011,2]
[380051076,1755507043945,-2454.7854,0.000109,2]
[380051077,1755507043955,-5598.00472169,0.00011,2]
[380051078,1755507043967,-356.35421974,0.00011,2]
[380051079,1755507043978,-538.000481,0.00011,2]
[380051081,1755507046568,-645132.84895779,0.00011,2]
[380051082,1755507046612,-7434.70881681,0.00011,2]
[380051083,1755507046623,-3135.20001,0.00011,2]
[380051084,1755507046635,-1848.11328,0.00011,2]
[380051087,1755507283837,-1000.0,0.000107,3]
[380051088,1755507283858,-300.0,0.0001078,2]
[380051089,1755507283878,-150.0,0.0001078,2]
[380051090,1755507283899,-4746.263,0.0001078,2]
[380051091,1755507283919,-356.997,0.0001078,2]
[380051092,1755507283941,-300.0,0.0001084,2]
[380051093,1755507283964,-150.0,0.0001084,2]
[380051094,1755507283985,-5130.8714,0.000109,2]
[380051095,1755507284008,-878.07814055,0.000109,2]
[380051096,1755507284030,-646.21545458,0.000109,2]
[380051097,1755507284051,-155.90246174,0.000109,2]
[380051098,1755507284072,-300.0,0.0001093,2]
[380051099,1755507284093,-150.0,0.0001093,2]
[380051100,1755507284113,-150.0,0.00010972,2]
[380051101,1755507284136,-500.0,0.00010973,2]
[380051102,1755507284157,-500.0,0.00010973,2]
[380051103,1755507284177,-500.0,0.00010973,2]
[380051104,1755507284197,-500.0,0.00010973,2]
[380051105,1755507284216,-500.0,0.00010973,2]